bitfinex-derivatives/quotes_ETHF0:USTF0_20250606
["timestamp","ask_amount","ask_price","bid_price","bid_amount"]
[1749223822465,4.6688,2510.4,2510.3,0.79609]
[1749223822768,23.4369,2510.4,2510.3,0.79609]
[1749223823768,0.6497,2510.5,2510.4,0.79606]
[1749223823968,26.31773,2510.5,2510.4,0.79606]
[1749223824165,26.31773,2510.5,2510.2,1.3079]
[1749223824166,25.5217,2510.5,2510.2,1.3079]
[1749223824369,0.79609,2510.3,2510.2,2.10397]
[1749223824771,0.79616,2510.2,2510.1,0.79614]
[1749223827575,0.79616,2510.1,2510.0,2.70184479]
[1749223827773,4.00396,2510.1,2510.0,0.80216479]
[1749223827974,4.00396,2510.1,2510.0,0.00597479]
[1749223828869,10.63922,2510.1,2509.6,1.2762]
[1749223829075,0.79631,2509.7,2509.5,0.6605]
[1749223829282,0.79631,2509.7,2509.6,0.79628]
[1749223833671,0.7963,2509.7,2509.6,0.79628]
[1749223834674,0.7963,2509.7,2509.6,0.86761351]
[1749223835381,4.00409,2509.8,2509.7,0.7963]
[1749223835591,0.7963,2509.7,2509.6,0.86765351]
[1749223836088,5.2971,2509.8,2509.7,0.7963]
[1749223836384,0.7963,2509.7,2509.6,0.86764351]
[1749223836586,6.2073,2509.7,2509.6,0.07133351]
[1749223836778,0.79649,2509.1,2509.0,0.7965]
[1749223837181,22.6208,2509.2,2508.8,1.48187]
[1749223837182,0.79656,2508.9,2508.8,1.48187]
[1749223837485,0.79656,2508.9,2508.8,0.79659]
[1749223837787,0.6731,2509.0,2508.9,0.79656]
[1749223837983,0.6731,2509.0,2508.6,1.9823]
[1749223838278,10.09797,2508.9,2508.8,0.79659]
[1749223838480,0.79662,2508.7,2508.6,0.79664]
[1749223838682,0.79661,2508.8,2508.7,0.79659]
[1749223839685,25.61661,2508.8,2508.7,0.79659]
[1749223840286,24.82,2508.8,2508.4,0.6357]
[1749223840785,24.82,2508.8,2508.6,0.79663]
[1749223840786,0.79665,2508.7,2508.6,0.79663]
[1749223840983,0.79668,2508.6,2508.5,0.79668]
[1749223841383,0.79674,2508.4,2508.3,0.79671]
[1749223842082,0.6724,2508.4,2508.3,0.79671]
[1749223842386,1.46912,2508.4,2508.3,0.79671]
[1749223842688,6.88112,2508.4,2508.3,0.79671]
[1749223843987,0.79678,2508.3,2508.2,0.79676]
[1749223844182,6.0844,2508.4,2508.3,0.79675]
[1749223844377,0.6724,2508.4,2508.3,0.79675]
[1749223844678,4.79e-06,2508.6,2508.5,0.79668]
[1749223844976,20.20139,2509.5,2509.4,0.79637]
[1749223845182,0.79644,2509.4,2509.3,0.79642]
[1749223845784,3.2078,2509.6,2509.5,0.79637]
[1749223845989,22.6118,2509.6,2509.5,0.79637]
[1749223846189,4.00414,2509.6,2509.5,0.79637]
[1749223847186,3.2078,2509.6,2509.5,0.79637]
[1749223847680,4.00414,2509.6,2509.5,0.79637]
[1749223847890,0.79637,2509.5,2509.4,2.10838]
[1749223848784,0.79637,2509.6,2509.5,0.79636]
[1749223848987,0.79634,2509.5,2509.4,2.10836]
[1749223849987,0.79633,2509.6,2509.5,0.86765351]
[1749223850289,19.398,2509.7,2509.5,0.07133351]
[1749223850484,0.79629,2509.7,2509.6,0.79628]
[1749223850687,19.395,2509.7,2509.6,1.3827]
[1749223850883,0.00597479,2509.8,2509.6,1.3827]
[1749223851089,0.79628,2509.7,2509.6,2.17899]
[1749223851601,24.103,2510.0,2509.6,2.17899]
[1749223851602,3.2078,2511.1,2511.0,0.79586]
[1749223851888,3.2078,2511.5,2511.0,0.79586]
[1749223852087,3.2078,2511.5,2511.2,0.79578]
[1749223852088,0.79578,2511.3,2511.2,0.79578]
[1749223852284,0.79578,2511.3,2511.0,1.3657]
[1749223852490,24.80997479,2511.4,2511.1,0.79582]
[1749223852792,24.80997479,2511.4,2511.2,0.79582]
[1749223852991,0.79582,2511.3,2511.1,0.79584]
[1749223853184,24.80997479,2511.4,2510.9,0.80188479]
[1749223853387,0.79586,2511.1,2510.9,0.80184479]
[1749223853581,0.79586,2511.1,2511.0,0.79587]
[1749223853785,0.79587,2511.0,2510.9,0.80185479]
[1749223854084,0.79585,2511.1,2511.0,0.79586]
[1749223854486,0.79586,2511.0,2510.9,0.00597479]
[1749223855890,6.9897,2511.0,2510.5,2.1617]
[1749223856093,6.9897,2511.0,2510.3,0.6432]
[1749223856094,0.79602,2510.6,2510.4,0.79604]
[1749223856393,8.6188,2510.7,2510.5,0.79606]
[1749223856590,8.6188,2510.7,2510.6,0.79603]
[1749223856995,3.2078,2510.7,2510.6,0.79603]
[1749223859993,4.00376,2510.7,2510.5,0.796]
[1749223860193,4.00376,2510.7,2510.4,1.26197479]
[1749223860194,0.79602,2510.5,2510.4,1.26197479]
[1749223860399,0.79602,2510.5,2510.4,0.00597479]
[1749223861391,5.41,2510.5,2510.4,2.06913479]
[1749223861696,3.2078,2510.7,2510.5,0.79606]
[1749223861896,0.79606,2510.6,2510.5,1.2671]
[1749223862098,6.20606,2510.6,2510.5,1.2671]
[1749223862494,0.79606,2510.5,2510.4,0.00597479]
[1749223862694,0.79606,2510.5,2510.4,0.80206479]
[1749223863501,5.41,2510.6,2510.5,0.79606]
[1749223863802,28.7518,2510.7,2510.6,0.79603]
[1749223864000,0.79603,2510.6,2510.5,2.06314]
[1749223864301,23.37182,2510.7,2510.6,0.79603]
[1749223864501,6.17603,2510.6,2510.5,2.06313]
[1749223864892,6.17603,2510.6,2510.5,2.75223]
[1749223865793,0.79603,2510.6,2510.5,2.75223]
[1749223866402,20.15995,2510.9,2510.8,0.79595]
[1749223866697,25.53895,2510.9,2510.8,0.79595]
[1749223866903,3.8901,2511.0,2510.6,0.79603]
[1749223867103,0.79605,2510.6,2510.5,2.75226]
[1749223867401,3.2078,2510.7,2510.6,0.79605]
[1749223867597,4.00374,2511.0,2510.9,0.79595]
[1749223867805,0.79598,2510.8,2510.7,2.05159]
[1749223868304,0.79598,2510.9,2510.8,0.79597]
[1749223868506,3.2078,2511.0,2510.9,0.79595]
[1749223868909,5.379,2511.3,2511.2,0.79586]
[1749223869111,23.36858479,2511.4,2511.3,0.79583]
[1749223869112,8.59277479,2511.4,2511.3,0.79583]
[1749223869599,0.00597479,2511.4,2511.3,0.79583]
[1749223871709,0.00597479,2511.4,2511.1,1.2556]
[1749223871710,0.79584,2511.3,2511.2,0.79583]
[1749223872003,0.79585,2511.2,2511.1,2.05146]
[1749223872207,3.21377479,2511.4,2511.1,1.2556]
[1749223872402,0.79585,2511.3,2511.2,0.79584]
[1749223872707,0.79585,2511.2,2511.1,2.05146]
[1749223873099,3.21377479,2511.4,2511.1,2.05146]
[1749223873296,0.79584,2511.3,2511.2,0.79584]
[1749223873505,3.21377479,2511.4,2511.3,0.79582]
[1749223873506,4.00960479,2511.4,2511.3,0.79582]
[1749223873707,0.79585,2511.3,2511.2,0.79584]
[1749223874004,3.21377479,2511.4,2511.0,0.7959]
[1749223874005,5.20327479,2511.4,2511.0,0.7959]
[1749223874202,3.2078,2511.2,2511.1,0.79588]
[1749223876315,0.00597479,2511.4,2511.3,0.79582]
[1749223876904,0.00597479,2511.4,2511.3,5.33372]
[1749223877102,3.2078,2512.0,2511.6,1.9893]
[1749223877304,3.2078,2512.0,2511.8,0.79564]
[1749223877610,0.79572,2511.7,2511.2,1.98964]
[1749223877807,0.79572,2511.7,2511.2,3.96834]
[1749223878007,6.17369,2511.8,2511.6,0.7957]
[1749223878309,0.00597479,2511.7,2511.6,0.79573]
[1749223880203,0.00597479,2511.7,2511.6,9.00353]
[1749223880404,3.8352,2512.6,2511.6,8.2078]
[1749223880608,5.378,2512.5,2512.3,0.79548]
[1749223880912,0.79548,2512.4,2512.3,0.79548]
[1749223881616,3.84117479,2512.6,2512.1,1.99485479]
[1749223881813,6.17346,2512.5,2512.4,0.79546]
[1749223882511,0.79551,2512.4,2512.3,0.79551]
[1749223882711,5.378,2512.5,2512.1,0.00597479]
[1749223882915,4.00335,2512.2,2512.1,0.00597479]
[1749223883307,9.00335,2512.2,2512.1,0.00597479]
[1749223883821,10.38435,2512.2,2512.1,0.00597479]
[1749223884015,1.98923,2511.8,2511.3,0.07133351]
[1749223884214,4.00357,2511.6,2511.5,0.79577]
[1749223884811,3.2078,2511.6,2511.5,0.79577]
[1749223885112,6.80013,2511.7,2511.6,0.79574]
[1749223885409,6.0044,2511.7,2511.6,0.79574]
[1749223885614,6.0044,2511.7,2511.3,3.4323883]
[1749223885615,6.0044,2511.7,2511.5,0.79575]
[1749223885816,3.2078,2511.6,2511.5,0.79575]
[1749223886813,6.0044,2511.7,2511.3,3.4323883]
[1749223886814,0.6274,2511.7,2511.6,0.79574]
[1749223888314,3.8352,2511.7,2511.6,0.79574]
[1749223888514,3.8352,2511.7,2511.3,0.0773083]
[1749223888712,1.43746,2511.6,2511.3,0.8731183]
[1749223888905,0.6417,2511.6,2511.3,0.0773083]
[1749223889110,3.2078,2511.4,2511.3,0.8730883]
[1749223890121,3.2078,2511.4,2511.3,2.2516883]
[1749223890511,5.377,2511.5,2511.4,0.79576]
[1749223890818,5.377,2511.5,2511.4,2.17436]
[1749223891121,0.6274,2511.7,2511.4,1.3786]
[1749223891324,0.6274,2511.7,2511.6,0.79569]
[1749223892310,5.377,2511.9,2511.6,0.79569]
[1749223892518,5.377,2511.9,2511.8,0.79563]
[1749223892820,5.377,2512.1,2512.0,0.79557]
[1749223893511,3.2078,2512.3,2511.9,1.98909]
[1749223893707,5.377,2512.2,2512.1,0.79558]
[1749223897118,10.377,2512.2,2511.7,2.0193]
[1749223897311,3.2078,2511.8,2511.7,0.7957]
[1749223898617,4.00349,2511.8,2511.6,0.79573]
[1749223898824,9.3535,2511.8,2511.6,0.79573]
[1749223899017,0.79573,2511.7,2511.5,0.79576]
[1749223899217,9.35349,2511.8,2511.6,0.79573]
[1749223899416,8.5578,2511.8,2511.4,0.07133351]
[1749223899612,8.5578,2511.8,2511.7,0.79571]
[1749223899818,27.8638,2511.8,2511.7,0.79571]
[1749223900321,3.2078,2511.8,2511.7,0.79571]
[1749223900522,27.8638,2511.8,2511.7,0.79571]
[1749223900718,28.72754777,2511.8,2511.7,0.79571]
[1749223902426,28.72554777,2511.8,2511.7,0.79571]
[1749223903528,9.42254777,2511.8,2511.7,0.79571]
[1749223903827,3.2078,2511.8,2511.7,2.78421]
[1749223904129,5.351,2511.9,2511.8,0.79568]
[1749223904424,3.2078,2512.1,2512.0,0.79561]
[1749223904624,9.4226294,2512.1,2512.0,0.79561]
[1749223907233,4.0716294,2512.1,2512.0,0.79561]
[1749223908933,5.35,2512.5,2512.4,0.79549]
[1749223909125,0.86606711,2512.5,2512.4,0.79549]
[1749223909330,3.21377479,2512.6,2512.4,0.79549]
[1749223909331,3.21377479,2512.6,2512.5,0.79546]
[1749223909635,0.00597479,2512.6,2512.5,1.44376]
[1749223909835,0.00597479,2512.6,2512.5,8.42646]
[1749223910042,8.5578,2513.2,2513.1,0.79527]
[1749223910335,27.2858,2513.5,2513.4,0.79517]
[1749223910535,0.79517,2513.4,2513.2,0.7952]
[1749223910729,6.14517,2513.4,2513.3,0.7952]
[1749223910929,7.00985494,2513.4,2513.3,0.7952]
[1749223911230,6.21468494,2513.4,2513.3,0.7952]
[1749223911439,7.00985494,2513.4,2513.2,0.79522]
[1749223911638,5.35,2513.4,2513.3,0.7952]
[1749223911828,7.00912253,2513.4,2513.2,0.79521]
[1749223912033,6.14517,2513.4,2513.2,0.79523]
[1749223912237,6.14517,2513.4,2513.1,0.00597479]
[1749223912238,0.86394421,2513.3,2513.1,0.80123479]
[1749223912435,3.2078,2513.2,2513.1,0.80123479]
[1749223914226,3.2078,2513.2,2513.1,2.16883479]
[1749223914840,24.634,2513.4,2513.3,0.7952]
[1749223915738,25.42917,2513.4,2513.3,0.7952]
[1749223916137,24.634,2513.4,2513.3,0.7952]
[1749223916739,25.42917,2513.4,2513.3,0.7952]
[1749223916934,27.2858,2513.5,2513.4,0.79517]
[1749223917132,51.9118,2513.5,2513.4,0.79517]
[1749223917832,52.70694,2513.5,2513.3,0.79519]
[1749223918034,51.9118,2513.5,2513.4,0.79517]
[1749223918842,3.2078,2513.5,2513.4,0.79517]
[1749223919341,4.00294,2513.5,2513.4,0.79517]
[1749223919542,3.2078,2513.5,2513.4,0.79517]
[1749223920940,0.63837479,2513.6,2513.5,0.79514]
[1749223921244,3.84617479,2513.6,2513.5,0.79514]
[1749223921842,22.48177479,2513.6,2513.5,0.79514]
[1749223922847,22.48177479,2513.6,2513.5,2.15394]
[1749223923344,22.48177479,2513.6,2513.5,0.79514]
[1749223923345,23.27688479,2513.6,2513.5,0.79514]
[1749223923540,0.79516,2513.5,2513.4,0.79515]
[1749223923747,22.48177479,2513.6,2513.1,0.63897479]
[1749223923941,0.79523,2513.2,2513.1,1.43421479]
[1749223924244,4.00302,2513.3,2513.2,0.79523]
[1749223924842,0.79523,2513.2,2513.1,0.80122479]
[1749223925040,0.79523,2513.2,2513.1,0.00597479]
[1749223925846,2.08033,2513.2,2513.1,0.00597479]
[1749223926149,0.79523,2513.2,2513.1,0.00597479]
[1749223927444,2.08033,2513.2,2513.1,0.00597479]
[1749223927844,2.95073304,2513.2,2513.1,0.00597479]
[1749223928342,31.22250304,2513.2,2512.0,1.98903]
[1749223928544,3.2078,2512.3,2512.2,0.79555]
[1749223930845,28.58219,2512.7,2512.6,0.79542]
[1749223931553,8.5308,2512.7,2512.6,0.79542]
[1749223932549,3.2078,2512.7,2512.6,0.79542]
[1749223932948,5.324,2512.9,2512.8,0.79536]
[1749223933145,19.8841,2513.1,2513.0,0.7953]
[1749223933452,20.67937,2513.1,2513.0,0.7953]
[1749223933646,19.8841,2513.1,2513.0,0.7953]
[1749223934046,0.79531,2513.0,2512.9,0.7953]
[1749223934247,4.00311,2513.0,2512.9,0.7953]
[1749223934447,29.391,2513.2,2513.1,0.79527]
[1749223935358,30.18623,2513.2,2513.1,0.79527]
[1749223935552,29.391,2513.2,2513.1,0.79527]
[1749223936653,29.391,2513.2,2513.0,0.79528]
[1749223936850,30.18625,2513.2,2513.1,0.79527]
[1749223938055,0.79527,2513.1,2513.0,0.79527]
[1749223938245,29.391,2513.2,2512.8,0.79535]
[1749223938246,0.79535,2512.9,2512.8,0.79535]
[1749223938452,4.00315,2512.9,2512.8,0.79535]
[1749223938752,3.2078,2512.9,2512.8,0.79535]
[1749223943462,4.00313,2512.9,2512.8,0.79535]
[1749223943964,3.2078,2512.9,2512.8,0.79535]
[1749223944763,4.00313,2512.9,2512.8,0.79535]
[1749223945757,3.2078,2512.9,2512.8,0.79535]
[1749223946062,4.00313,2512.9,2512.8,0.79535]
[1749223946255,0.79539,2512.7,2512.6,2.17681]
[1749223946463,0.79548,2512.5,2512.4,0.79547]
[1749223946659,20.03245,2512.6,2512.5,0.79546]
[1749223946966,19.237,2512.6,2512.5,0.79546]
[1749223947165,20.03242,2512.6,2512.5,0.79546]
[1749223947761,0.79542,2512.6,2512.5,0.79546]
[1749223947956,25.35442,2512.6,2512.5,0.79546]
[1749223948462,0.79541,2512.5,2512.4,0.79541]
[1749223948863,19.235,2512.5,2512.4,0.79541]
[1749223949372,0.79541,2512.5,2512.4,0.79541]
[1749223949665,19.234,2512.5,2512.4,0.79541]
[1749223949867,24.558,2512.6,2512.5,0.79538]
[1749223950665,24.558,2512.6,2512.4,0.6378]
[1749223950865,25.35338,2512.6,2512.5,1.254]
[1749223951066,0.79538,2512.6,2512.5,1.906]
[1749223951372,19.232,2512.6,2512.5,1.906]
[1749223951573,20.02738,2512.6,2512.5,1.906]
[1749223951876,20.02738,2512.6,2512.5,0.652]
[1749223953168,0.79545,2512.5,2512.2,2.1776]
[1749223953370,0.79545,2512.5,2512.3,0.79549]
[1749223953572,0.79545,2512.5,2512.2,2.8296]
[1749223954072,0.79545,2512.5,2512.3,0.79549]
[1749223954271,0.79545,2512.5,2512.2,2.0341]
[1749223954272,0.79549,2512.3,2512.2,0.652]
[1749223954580,0.79549,2512.3,2512.0,1.58639068]
[1749223954581,0.79553,2512.2,2512.0,0.80155479]
[1749223954768,0.79553,2512.2,2512.0,2.18365479]
[1749223955366,0.79553,2512.2,2512.0,1.38807479]
[1749223956075,0.79553,2512.2,2512.0,2.18365479]
[1749223957176,5.324,2512.3,2512.0,2.18365479]
[1749223957366,0.79553,2512.2,2512.0,2.18365479]
[1749223959469,5.324,2512.3,2512.0,0.00597479]
[1749223959671,0.79555,2512.1,2512.0,0.00597479]
[1749223960674,0.6492,2512.2,2512.0,0.00597479]
[1749223960875,1.44475,2512.2,2512.0,2.12766479]
[1749223961071,0.6492,2512.2,2512.1,0.79555]
[1749223961275,5.32997479,2512.3,2512.0,1.33207479]
[1749223961576,0.00597479,2512.3,2512.0,1.33207479]
[1749223961781,0.00597479,2512.3,2512.1,0.79555]
[1749223961979,0.79555,2512.2,2512.0,1.33207479]
[1749223962179,0.79555,2512.1,2512.0,0.00597479]
[1749223962475,9.30535,2512.1,2512.0,0.00597479]
[1749223963078,9.93715,2512.1,2512.0,0.00597479]
[1749223963380,11.26195,2512.1,2512.0,0.00597479]
[1749223964378,4.63515,2512.1,2512.0,0.00597479]
[1749223964582,3.2078,2512.1,2512.0,0.80156479]
[1749223964784,22.4258,2512.1,2512.0,0.00597479]
[1749223964983,23.22135,2512.1,2512.0,0.00597479]
[1749223966886,24.56055,2512.1,2512.0,0.00597479]
[1749223969789,24.56055,2512.1,2512.0,0.0773083]
[1749223971284,4.67635,2512.1,2512.0,0.0773083]
[1749223971489,29.18935,2512.1,2512.0,0.0773083]
[1749223972783,28.51635,2512.1,2512.0,0.0773083]
[1749223974296,3.2078,2512.1,2512.0,0.0773083]
[1749223974492,0.00597479,2512.3,2512.2,0.79552]
[1749223974793,0.00597479,2512.3,2512.1,1.9686]
[1749223974990,0.00597479,2512.3,2512.2,2.07822]
[1749223975393,0.00597479,2512.3,2512.2,1.2827]
[1749223975595,0.00597479,2512.3,2512.2,2.07822]
[1749223975789,0.00597479,2512.3,2512.2,1.2827]
[1749223975790,0.80146479,2512.3,2512.2,1.2827]
[1749223976296,0.00597479,2512.3,2512.2,2.07822]
[1749223976496,0.80146479,2512.3,2512.2,1.2827]
[1749223976793,0.00597479,2512.3,2512.2,1.2827]
[1749223976995,0.00597479,2512.3,2512.2,2.07822]
[1749223977393,0.80146479,2512.3,2512.2,1.2827]
[1749223977786,0.00597479,2512.3,2512.2,2.07822]
[1749223977993,0.80146479,2512.3,2512.2,1.2827]
[1749223980491,0.00597479,2512.3,2512.2,2.07822]
[1749223980900,0.00597479,2512.3,2512.2,1.2827]
[1749223981102,0.80146479,2512.3,2512.2,1.2827]
[1749223981900,0.79552,2512.2,2512.1,0.6859]
[1749223982101,4.00332,2512.2,2512.1,0.6859]
[1749223983601,5.30797479,2512.3,2512.1,0.6859]
[1749223983793,5.30797479,2512.3,2512.1,2.0701]
[1749223983999,0.79552,2512.2,2512.1,2.0701]
[1749223984999,0.79552,2512.2,2512.1,2.14143351]
[1749223985698,4.00332,2512.2,2512.1,0.07133351]
[1749223986109,0.79552,2512.1,2512.0,0.00597479]
[1749223987102,1.48622,2512.1,2512.0,0.00597479]
[1749223988206,0.79568,2511.6,2511.5,0.6687]
[1749223988607,0.79568,2511.6,2511.5,2.022]
[1749223989304,5.278,2511.8,2511.5,2.022]
[1749223989508,6.07364,2511.8,2511.6,0.79567]
[1749223989704,0.79566,2511.7,2511.5,2.8177]
[1749223989905,0.79568,2511.6,2511.5,2.022]
[1749223990612,0.79566,2511.7,2511.5,2.022]
[1749223990812,0.79566,2511.7,2511.5,2.8177]
[1749223991010,0.79566,2511.7,2511.5,2.022]
[1749223991208,6.07363,2511.8,2511.5,2.022]
[1749223991513,0.79565,2511.7,2511.5,2.81768]
[1749223992212,0.79565,2511.7,2511.6,0.79568]
[1749223992405,5.278,2511.8,2511.5,2.022]
[1749223992605,5.278,2511.8,2511.5,2.8177]
[1749223992805,0.79566,2511.7,2511.6,0.79567]
[1749223993013,5.278,2511.8,2511.5,2.022]
[1749223993207,5.278,2511.8,2511.6,0.79568]
[1749223993208,0.79567,2511.7,2511.6,0.79568]
[1749223993605,0.79564,2511.8,2511.6,0.79568]
[1749223993805,0.79564,2511.8,2511.7,1.3872]
[1749223994206,0.79564,2511.8,2511.7,2.18284]
[1749223994408,0.8719254,2511.8,2511.7,2.18284]
[1749223994712,8.4868,2512.2,2512.1,0.79554]
[1749223994909,0.00597479,2512.3,2512.2,0.79551]
[1749223995118,0.00597479,2512.3,2512.2,0.86684351]
[1749223995305,0.00597479,2512.3,2512.2,2.24304351]
[1749223996215,0.00597479,2512.3,2512.2,7.24304351]
[1749223998511,0.00597479,2512.3,2512.2,2.24304351]
[1749224007421,0.00597479,2512.3,2512.2,2.17171]
[1749224007629,0.79551,2512.2,2512.1,3.2078]
[1749224007918,0.79561,2511.9,2511.8,0.79561]
[1749224008815,0.79559,2512.0,2511.9,0.7956]
[1749224009315,0.79559,2512.0,2511.7,1.3514]
[1749224009316,0.651,2512.2,2511.8,1.98909]
[1749224009523,0.651,2512.2,2511.9,2.0314]
[1749224010020,0.79557,2512.0,2511.9,2.82699]
[1749224010326,0.79555,2512.1,2512.0,0.79555]
[1749224010713,0.00597479,2512.3,2511.9,2.0314]
[1749224011014,0.00597479,2512.3,2512.2,0.79551]
[1749224011523,0.00597479,2512.3,2512.2,0.86684351]
[1749224014524,0.80145479,2512.3,2512.2,0.86684351]
[1749224014724,0.80145479,2512.3,2512.2,0.07133351]
[1749224015429,0.79557,2512.0,2511.9,0.68]
[1749224015817,0.79557,2512.0,2511.9,1.4756]
[1749224016014,0.79557,2512.0,2511.9,0.68]
[1749224016727,0.79563,2511.8,2511.7,0.79564]
[1749224017026,1.98886,2512.1,2511.6,2.5922]
[1749224017226,1.98886,2512.1,2511.8,0.79562]
[1749224017227,0.79562,2511.9,2511.8,0.79562]
[1749224017729,0.79567,2511.7,2511.6,0.6753]
[1749224017926,1.98894,2512.0,2511.6,0.79567]
[1749224018122,0.7957,2511.6,2511.5,0.7957]
[1749224018522,0.79569,2511.7,2511.6,0.79569]
[1749224018829,5.88942,2511.9,2511.3,7.19284479]
[1749224019029,0.79567,2511.7,2511.6,0.79567]
[1749224020125,9.1544,2511.9,2511.4,1.98939]
[1749224020323,5.9466,2511.9,2511.5,3.35921]
[1749224020519,6.74223,2511.9,2511.5,3.35921]
[1749224020823,0.79557,2512.0,2511.7,0.79566]
[1749224021023,6.04955,2512.1,2511.8,0.6865]
[1749224021224,5.254,2512.1,2512.0,0.79556]
[1749224021424,6.13054415,2512.1,2512.0,0.79556]
[1749224021627,1.67207415,2512.1,2512.0,0.79556]
[1749224021832,1.67207415,2512.1,2512.0,2.16546]
[1749224022028,1.67207415,2512.1,2511.9,3.2078]
[1749224022029,0.79555,2512.0,2511.9,3.2078]
[1749224022227,0.79555,2512.0,2511.8,0.6865]
[1749224022228,0.79558,2511.9,2511.8,0.6865]
[1749224022927,0.79558,2511.9,2511.8,1.48211]
[1749224023326,3.895,2512.2,2511.8,1.48211]
[1749224023530,0.79556,2512.0,2511.9,0.79555]
[1749224024325,0.79553,2512.1,2512.0,0.79552]
[1749224024529,1.67236915,2512.1,2512.0,0.79552]
[1749224025631,1.67235915,2512.1,2512.0,0.79552]
[1749224025831,0.79558,2511.9,2511.8,1.48209]
[1749224027834,0.79558,2511.9,2511.8,1.48211]
[1749224028432,0.79559,2512.0,2511.9,0.79557]
[1749224029134,0.7956,2511.9,2511.8,1.4821]
[1749224029631,0.79559,2512.0,2511.9,0.79556]
[1749224030436,3.2078,2512.2,2512.1,0.79553]
[1749224030631,4.08928512,2512.2,2512.1,0.79553]
[1749224030938,4.88490442,2512.2,2512.1,0.79553]
[1749224031324,4.0033,2512.2,2512.1,0.79553]
[1749224032034,0.7955,2512.2,2512.1,0.79553]
[1749224032630,0.79559,2512.0,2511.9,0.79557]
[1749224032932,1.48576,2512.1,2512.0,0.79556]
[1749224033522,0.79556,2512.1,2512.0,0.79556]
[1749224033726,0.79552,2512.2,2512.1,0.7955]
[1749224033933,0.80147479,2512.3,2512.2,0.7955]
[1749224034128,1.68317531,2512.3,2512.2,0.7955]
[1749224034330,1.68317531,2512.3,2512.2,1.4892]
[1749224035135,1.68304356,2512.3,2512.2,1.4892]
[1749224036236,1.68304356,2512.3,2512.2,0.6937]
[1749224036439,1.68304356,2512.3,2511.9,0.6652]
[1749224036440,2.87628356,2512.3,2511.9,0.6652]
[1749224036632,0.79556,2512.0,2511.9,2.17217]
[1749224038633,0.79555,2512.1,2512.0,0.79552]
[1749224038830,1.67714321,2512.1,2512.0,0.79552]
[1749224039632,0.79552,2512.2,2512.1,0.79549]
[1749224039833,1.67776542,2512.2,2512.1,0.79549]
[1749224041133,0.79558,2511.9,2511.8,0.6884]
[1749224041338,0.79558,2512.0,2511.6,3.71325189]
[1749224041539,0.79561,2511.9,2511.8,0.79558]
[1749224041741,0.79561,2511.8,2511.7,2.12263]
[1749224042138,1.98889,2512.0,2511.6,0.6505]
[1749224042139,0.79565,2511.7,2511.6,0.6505]
[1749224042335,0.79565,2511.7,2511.6,1.44618]
[1749224042838,0.79564,2511.8,2511.7,0.79561]
[1749224043140,0.79565,2511.7,2511.6,1.44615]
[1749224043343,0.79565,2511.7,2511.6,0.79565]
[1749224044032,0.79568,2511.6,2511.5,3.18194189]
[1749224044444,0.79568,2511.6,2511.5,0.79569]
[1749224044740,0.79568,2511.6,2511.5,3.18194189]
[1749224045148,0.79566,2511.7,2511.6,0.79564]
[1749224045440,0.79568,2511.6,2511.5,3.18193189]
[1749224045742,0.79565,2511.8,2511.7,0.79562]
[1749224046044,0.79568,2511.7,2511.6,0.79565]
[1749224046642,2.87290069,2511.7,2511.3,6.39578668]
[1749224046839,0.79574,2511.4,2511.3,0.80173479]
[1749224047138,4.88685348,2511.4,2511.3,0.00597479]
[1749224047444,0.79587,2511.1,2511.0,0.79586]
[1749224047747,0.79589,2511.0,2510.9,0.79587]
[1749224048242,0.79589,2510.9,2510.8,3.2078]
[1749224048635,0.6311,2511.3,2511.2,0.7958]
[1749224048835,5.231,2511.9,2511.5,0.79571]
[1749224049031,1.67832764,2511.8,2511.7,0.79562]
[1749224049236,0.79567,2511.7,2511.6,0.79565]
[1749224050239,0.79568,2511.6,2511.5,2.09108]
[1749224050440,0.79567,2511.7,2511.6,0.79565]
[1749224051041,0.79564,2511.8,2511.7,0.79561]
[1749224051245,0.79567,2511.7,2511.6,0.79565]
[1749224051541,0.79563,2511.7,2511.6,0.7956]
[1749224051742,5.231,2511.9,2511.6,1.98905]
[1749224051942,0.87248607,2511.8,2511.7,0.7956]
[1749224052139,0.87248607,2511.8,2511.7,0.86693351]
[1749224052340,1.66808607,2511.8,2511.7,0.86693351]
[1749224052654,0.7956,2511.8,2511.7,0.07133351]
[1749224053041,0.7956,2511.8,2511.7,0.7956]
[1749224053251,0.79563,2511.6,2511.5,2.09104]
[1749224053546,0.79562,2511.7,2511.6,0.7956]
[1749224054742,0.79563,2511.6,2511.5,2.09103]
[1749224055146,0.79563,2511.6,2511.5,2.16236351]
[1749224055645,0.79563,2511.6,2511.5,0.07133351]
[1749224056044,0.6311,2512.0,2511.6,1.98907]
[1749224056245,0.6311,2512.0,2511.5,3.27913351]
[1749224056246,0.00597479,2512.3,2512.2,0.79544]
[1749224056538,0.79547,2512.2,2512.1,0.79545]
[1749224056745,0.7955,2512.0,2511.9,1.3372]
[1749224056935,0.7955,2512.0,2511.9,2.6059]
[1749224057542,0.7955,2512.0,2511.9,3.40143]
[1749224058044,0.7955,2512.0,2511.9,1.46363]
[1749224058345,0.79549,2512.1,2512.0,0.79547]
[1749224058539,0.00597479,2512.3,2512.0,1.2687]
[1749224058847,0.80140479,2512.3,2512.2,0.79544]
[1749224059051,0.80140479,2512.3,2512.2,3.2078]
[1749224059254,0.80140479,2512.3,2512.2,4.00324]
[1749224059548,0.79547,2512.1,2512.0,0.79548]
[1749224059748,0.79547,2512.1,2512.0,2.06228]
[1749224061353,0.79547,2512.1,2512.0,1.2668]
[1749224061652,0.79546,2512.2,2512.1,0.79544]